[Event "Early-Titled-Tuesday-Blitz-June-18-2024"]
[Site "Chess.com"]
[Date "2024.06.18"]
[Round "6"]
[White "fourqueens13"]
[Black "MANOJ_MISHRA123"]
[Result "1/2-1/2"]
[WhiteElo "2390"]
[BlackElo "2199"]
[TimeControl "180+1"]
[EndTime "9:10:01 PDT"]
[Termination "Game drawn by stalemate"]

1. c4 {[%clk 0:03:00.9]} 1... Nf6 {[%clk 0:02:59.4]} 2. g3 {[%clk 0:03:00.7]}
2... g6 {[%clk 0:02:58.6]} 3. Bg2 {[%clk 0:03:00.5]} 3... Bg7 {[%clk 0:02:58.8]}
4. Nc3 {[%clk 0:03:00.6]} 4... O-O {[%clk 0:02:58.8]} 5. e4 {[%clk 0:02:59.8]}
5... d6 {[%clk 0:02:58.5]} 6. Nge2 {[%clk 0:02:59.1]} 6... c5 {[%clk 0:02:58.1]}
7. O-O {[%clk 0:02:57.6]} 7... e5 {[%clk 0:02:58.1]} 8. d3 {[%clk 0:02:55.6]}
8... Nc6 {[%clk 0:02:58]} 9. a3 {[%clk 0:02:52.9]} 9... Nd4 {[%clk 0:02:57.3]}
10. b4 {[%clk 0:02:48.3]} 10... b6 {[%clk 0:02:55.5]} 11. Rb1 {[%clk 0:02:42.8]}
11... a5 {[%clk 0:02:53.1]} 12. Bg5 {[%clk 0:02:38.4]} 12... h6 {[%clk
0:02:51.2]} 13. Bxf6 {[%clk 0:02:37.6]} 13... Bxf6 {[%clk 0:02:46.7]} 14. bxc5
{[%clk 0:02:26.4]} 14... bxc5 {[%clk 0:02:44.1]} 15. Nxd4 {[%clk 0:02:25.9]}
15... cxd4 {[%clk 0:02:40.1]} 16. Nd5 {[%clk 0:02:26.8]} 16... Be6 {[%clk
0:02:38.1]} 17. f4 {[%clk 0:02:20.5]} 17... Bxd5 {[%clk 0:02:36.6]} 18. exd5
{[%clk 0:02:19.3]} 18... Rb8 {[%clk 0:02:30]} 19. fxe5 {[%clk 0:02:09.1]} 19...
Bxe5 {[%clk 0:02:29.2]} 20. Qd2 {[%clk 0:02:05.2]} 20... Kg7 {[%clk 0:02:26.7]}
21. Rb5 {[%clk 0:01:52.5]} 21... a4 {[%clk 0:02:00]} 22. Rfb1 {[%clk 0:01:34]}
22... Qc7 {[%clk 0:01:47.3]} 23. Qb4 {[%clk 0:01:27.2]} 23... Ra8 {[%clk
0:01:26.4]} 24. Rb7 {[%clk 0:01:23.3]} 24... Qd8 {[%clk 0:01:25.2]} 25. c5
{[%clk 0:01:18.3]} 25... Qg5 {[%clk 0:01:23.3]} 26. cxd6 {[%clk 0:00:59]} 26...
Qe3+ {[%clk 0:01:16.6]} 27. Kh1 {[%clk 0:00:58.9]} 27... Rac8 {[%clk 0:00:58.2]}
28. Qe1 {[%clk 0:00:53]} 28... Bxd6 {[%clk 0:00:42.9]} 29. Qxe3 {[%clk
0:00:42.8]} 29... dxe3 {[%clk 0:00:40]} 30. Ra7 {[%clk 0:00:38]} 30... Rfe8
{[%clk 0:00:17.7]} 31. Be4 {[%clk 0:00:30.1]} 31... Bxa3 {[%clk 0:00:11.5]} 32.
Rxa4 {[%clk 0:00:28.5]} 32... f5 {[%clk 0:00:08.8]} 33. Rxa3 {[%clk 0:00:19.8]}
33... fxe4 {[%clk 0:00:08.9]} 34. dxe4 {[%clk 0:00:20.7]} 34... Rxe4 {[%clk
0:00:09.7]} 35. Re1 {[%clk 0:00:20.8]} 35... e2 {[%clk 0:00:09.1]} 36. Ra2
{[%clk 0:00:18.5]} 36... Rd8 {[%clk 0:00:07.3]} 37. Rd2 {[%clk 0:00:16.9]} 37...
Kf6 {[%clk 0:00:06.2]} 38. Kg2 {[%clk 0:00:17.3]} 38... Ke5 {[%clk 0:00:05.9]}
39. Kf3 {[%clk 0:00:16.4]} 39... Rf8+ {[%clk 0:00:04.6]} 40. Kg2 {[%clk
0:00:16.2]} 40... Rd8 {[%clk 0:00:04.6]} 41. d6 {[%clk 0:00:15.5]} 41... Rxd6
{[%clk 0:00:03.8]} 42. Rxd6 {[%clk 0:00:16.4]} 42... Kxd6 {[%clk 0:00:04.4]} 43.
Kf3 {[%clk 0:00:17.2]} 43... Ke5 {[%clk 0:00:04.8]} 44. Rxe2 {[%clk 0:00:17.1]}
44... Rxe2 {[%clk 0:00:05.7]} 45. Kxe2 {[%clk 0:00:18]} 45... Ke4 {[%clk
0:00:06.5]} 46. Kf2 {[%clk 0:00:18]} 46... h5 {[%clk 0:00:06.3]} 47. h3 {[%clk
0:00:17.8]} 47... g5 {[%clk 0:00:06.1]} 48. h4 {[%clk 0:00:16.9]} 48... gxh4
{[%clk 0:00:04.9]} 49. gxh4 {[%clk 0:00:17.8]} 49... Kf4 {[%clk 0:00:04.7]} 50.
Kg2 {[%clk 0:00:18.4]} 50... Kg4 {[%clk 0:00:05.6]} 51. Kh1 {[%clk 0:00:19.3]}
51... Kxh4 {[%clk 0:00:06.5]} 52. Kg1 {[%clk 0:00:20.1]} 52... Kg4 {[%clk
0:00:07.4]} 53. Kh1 {[%clk 0:00:21]} 53... h4 {[%clk 0:00:06.4]} 54. Kg1 {[%clk
0:00:21.9]} 54... h3 {[%clk 0:00:06]} 55. Kh1 {[%clk 0:00:22.1]} 55... Kh4
{[%clk 0:00:06.6]} 56. Kh2 {[%clk 0:00:23]} 56... Kg4 {[%clk 0:00:06.6]} 57. Kh1
{[%clk 0:00:23.9]} 57... Kg3 {[%clk 0:00:07.2]} 58. Kg1 {[%clk 0:00:24]} 58...
h2+ {[%clk 0:00:07.9]} 59. Kh1 {[%clk 0:00:24.9]} 59... Kh3 {[%clk 0:00:08.6]}
1/2-1/2

[Event "Early-Titled-Tuesday-Blitz-June-18-2024"]
[Site "Chess.com"]
[Date "2024.06.18"]
[Round "6"]
[White "rachidhuilda"]
[Black "Moon_stone123"]
[Result "1-0"]
[WhiteElo "2414"]
[BlackElo "2596"]
[TimeControl "180+1"]
[EndTime "9:10:05 PDT"]
[Termination "rachidhuilda won by resignation"]

1. d4 {[%clk 0:03:00.9]} 1... d5 {[%clk 0:02:54.6]} 2. Nf3 {[%clk 0:03:00.2]}
2... e6 {[%clk 0:02:54]} 3. c4 {[%clk 0:03:00]} 3... a6 {[%clk 0:02:53.9]} 4.
cxd5 {[%clk 0:02:58.9]} 4... exd5 {[%clk 0:02:54.8]} 5. Nc3 {[%clk 0:02:55.7]}
5... c6 {[%clk 0:02:55]} 6. Bf4 {[%clk 0:02:54.1]} 6... Bd6 {[%clk 0:02:54.7]}
7. Bg3 {[%clk 0:02:53.5]} 7... Nf6 {[%clk 0:02:53.7]} 8. e3 {[%clk 0:02:53.5]}
8... O-O {[%clk 0:02:52.8]} 9. Bd3 {[%clk 0:02:53.3]} 9... Re8 {[%clk
0:02:52.4]} 10. Qc2 {[%clk 0:02:53.1]} 10... Be6 {[%clk 0:02:51.5]} 11. O-O
{[%clk 0:02:51.8]} 11... Bxg3 {[%clk 0:02:50.9]} 12. hxg3 {[%clk 0:02:50.2]}
12... Nbd7 {[%clk 0:02:51.5]} 13. Rfd1 {[%clk 0:02:48.2]} 13... Qe7 {[%clk
0:02:45.5]} 14. Rab1 {[%clk 0:02:46.7]} 14... a5 {[%clk 0:02:44.7]} 15. a3
{[%clk 0:02:45.9]} 15... Bg4 {[%clk 0:02:44.5]} 16. Bf5 {[%clk 0:02:40.2]} 16...
Bxf5 {[%clk 0:02:38.1]} 17. Qxf5 {[%clk 0:02:39.5]} 17... g6 {[%clk 0:02:36.1]}
18. Qc2 {[%clk 0:02:33.2]} 18... Ne4 {[%clk 0:02:35.1]} 19. Nxe4 {[%clk
0:02:33.2]} 19... dxe4 {[%clk 0:02:34.8]} 20. Nd2 {[%clk 0:02:32.8]} 20... Nf6
{[%clk 0:02:34.7]} 21. b4 {[%clk 0:02:20.4]} 21... axb4 {[%clk 0:02:35.6]} 22.
axb4 {[%clk 0:02:20.8]} 22... Ra3 {[%clk 0:02:35.1]} 23. b5 {[%clk 0:02:18.2]}
23... Rc8 {[%clk 0:02:20.1]} 24. Rdc1 {[%clk 0:02:07.7]} 24... Ra5 {[%clk
0:02:16.3]} 25. Qc5 {[%clk 0:01:54.2]} 25... Qe6 {[%clk 0:02:10.5]} 26. Qe5
{[%clk 0:01:41.6]} 26... Qxe5 {[%clk 0:02:05.3]} 27. dxe5 {[%clk 0:01:41.8]}
27... Nd7 {[%clk 0:02:02.5]} 28. bxc6 {[%clk 0:01:20.1]} 28... Rxc6 {[%clk
0:01:59.6]} 29. Rxc6 {[%clk 0:01:10.6]} 29... bxc6 {[%clk 0:02:00.5]} 30. Nxe4
{[%clk 0:01:05.7]} 30... Nxe5 {[%clk 0:02:00.7]} 31. Rc1 {[%clk 0:00:54.1]}
31... Ra4 {[%clk 0:01:57.9]} 32. f3 {[%clk 0:00:50.2]} 32... Ra3 {[%clk
0:01:54.1]} 33. Rc3 {[%clk 0:00:45.4]} 33... Rxc3 {[%clk 0:01:48.2]} 34. Nxc3
{[%clk 0:00:46.3]} 34... Kf8 {[%clk 0:01:48.1]} 35. Kf2 {[%clk 0:00:45]} 35...
Ke7 {[%clk 0:01:48.2]} 36. e4 {[%clk 0:00:42.1]} 36... Kd6 {[%clk 0:01:47.7]}
37. Ke3 {[%clk 0:00:42.2]} 37... Kc5 {[%clk 0:01:45.7]} 38. g4 {[%clk
0:00:38.2]} 38... Kb4 {[%clk 0:01:41.3]} 39. Ne2 {[%clk 0:00:29.5]} 39... c5
{[%clk 0:01:41.1]} 40. g5 {[%clk 0:00:28.3]} 40... c4 {[%clk 0:01:40]} 41. f4
{[%clk 0:00:25.7]} 41... Nd7 {[%clk 0:01:38.4]} 42. Kd4 {[%clk 0:00:24]} 42...
Nc5 {[%clk 0:01:34]} 43. f5 {[%clk 0:00:20.2]} 43... Nb3+ {[%clk 0:01:32.4]} 44.
Ke5 {[%clk 0:00:18.3]} 44... c3 {[%clk 0:01:16.8]} 45. Nxc3 {[%clk 0:00:09.6]}
45... Kxc3 {[%clk 0:01:17.7]} 46. Kf6 {[%clk 0:00:10.1]} 46... Nc5 {[%clk
0:00:28.9]} 47. Kxf7 {[%clk 0:00:09.2]} 47... Nxe4 {[%clk 0:00:28.8]} 48. fxg6
{[%clk 0:00:09.2]} 48... hxg6 {[%clk 0:00:29.7]} 49. Kxg6 {[%clk 0:00:09.3]}
49... Kd4 {[%clk 0:00:30.3]} 50. Kf5 {[%clk 0:00:09.2]} 50... Kd5 {[%clk
0:00:26.2]} 51. g6 {[%clk 0:00:08.6]} 51... Nd6+ {[%clk 0:00:24]} 52. Kf6 {[%clk
0:00:08.3]} 52... Ne8+ {[%clk 0:00:22.1]} 53. Kf7 {[%clk 0:00:05.8]} 53... Nd6+
{[%clk 0:00:22.1]} 54. Ke7 {[%clk 0:00:04.4]} 54... Nf5+ {[%clk 0:00:20.9]} 55.
Kf6 {[%clk 0:00:04.4]} 55... Nd6 {[%clk 0:00:16.5]} 56. g4 {[%clk 0:00:03.6]}
56... Ne8+ {[%clk 0:00:15.5]} 57. Kf7 {[%clk 0:00:03.6]} 57... Nd6+ {[%clk
0:00:13.3]} 58. Ke7 {[%clk 0:00:04.2]} 1-0

[Event "Early-Titled-Tuesday-Blitz-June-18-2024"]
[Site "Chess.com"]
[Date "2024.06.18"]
[Round "6"]
[White "giovannibrandao7"]
[Black "kinga2008"]
[Result "0-1"]
[WhiteElo "2287"]
[BlackElo "2559"]
[TimeControl "180+1"]
[EndTime "9:10:05 PDT"]
[Termination "kinga2008 won on time"]

1. e4 {[%clk 0:03:00.9]} 1... e6 {[%clk 0:02:24.8]} 2. d4 {[%clk 0:02:26.3]}
2... d5 {[%clk 0:01:17.4]} 3. Nd2 {[%clk 0:01:18.9]} 3... c5 {[%clk 0:01:16.6]}
4. exd5 {[%clk 0:01:18.8]} 4... exd5 {[%clk 0:01:16]} 5. dxc5 {[%clk 0:01:18.6]}
5... Bxc5 {[%clk 0:01:16.3]} 6. Ngf3 {[%clk 0:01:19]} 6... Nf6 {[%clk
0:01:16.9]} 7. Bb5+ {[%clk 0:01:18.4]} 7... Bd7 {[%clk 0:01:17]} 8. Qe2+ {[%clk
0:01:17.7]} 8... Be7 {[%clk 0:01:16.3]} 9. O-O {[%clk 0:01:16.4]} 9... O-O
{[%clk 0:01:16.2]} 10. c3 {[%clk 0:01:15.6]} 10... Nc6 {[%clk 0:01:15.4]} 11.
Nb3 {[%clk 0:01:09]} 11... Bd6 {[%clk 0:01:14]} 12. Bg5 {[%clk 0:01:06.1]} 12...
h6 {[%clk 0:01:13.4]} 13. Bh4 {[%clk 0:01:05.3]} 13... Be7 {[%clk 0:01:10.3]}
14. Rad1 {[%clk 0:00:59]} 14... a6 {[%clk 0:01:09.2]} 15. Bxc6 {[%clk
0:00:53.5]} 15... bxc6 {[%clk 0:01:05.4]} 16. Ne5 {[%clk 0:00:48.4]} 16... Re8
{[%clk 0:01:02.5]} 17. Nxd7 {[%clk 0:00:43.7]} 17... Qxd7 {[%clk 0:01:00.6]} 18.
Qf3 {[%clk 0:00:39.9]} 18... Ne4 {[%clk 0:00:58]} 19. Bxe7 {[%clk 0:00:37.8]}
19... Qxe7 {[%clk 0:00:57.7]} 20. h3 {[%clk 0:00:28.6]} 20... Rab8 {[%clk
0:00:46.7]} 21. Rfe1 {[%clk 0:00:20.7]} 21... Qg5 {[%clk 0:00:40.5]} 22. c4
{[%clk 0:00:14.1]} 22... dxc4 {[%clk 0:00:32.7]} 23. Rxe4 {[%clk 0:00:13.8]}
23... Rxe4 {[%clk 0:00:25.9]} 24. Qxe4 {[%clk 0:00:14.7]} 24... cxb3 {[%clk
0:00:25.7]} 25. axb3 {[%clk 0:00:12]} 25... Qf6 {[%clk 0:00:25]} 26. Rc1 {[%clk
0:00:07.6]} 26... Qxb2 {[%clk 0:00:21.7]} 27. Qxc6 {[%clk 0:00:07.6]} 27... Qxb3
{[%clk 0:00:20.4]} 28. Qxa6 {[%clk 0:00:05.6]} 28... Qb2 {[%clk 0:00:21]} 29.
Qf1 {[%clk 0:00:05.4]} 29... Qd4 {[%clk 0:00:21.4]} 30. Qd1 {[%clk 0:00:05.1]}
30... Qf6 {[%clk 0:00:21.2]} 31. Qd2 {[%clk 0:00:03.6]} 31... Rb2 {[%clk
0:00:19.3]} 32. Qe3 {[%clk 0:00:03.3]} 32... Kh7 {[%clk 0:00:18.3]} 33. Re1
{[%clk 0:00:03.1]} 33... g6 {[%clk 0:00:17.8]} 34. g3 {[%clk 0:00:02.1]} 34...
h5 {[%clk 0:00:18]} 35. Kg2 {[%clk 0:00:02.4]} 35... Qf5 {[%clk 0:00:18]} 36.
Qf3 {[%clk 0:00:02.5]} 36... Qd7 {[%clk 0:00:17]} 37. Re4 {[%clk 0:00:01.7]}
37... Rb5 {[%clk 0:00:16.7]} 38. Rf4 {[%clk 0:00:02]} 38... Kg7 {[%clk
0:00:15.5]} 39. Qc3+ {[%clk 0:00:01.4]} 39... Kh7 {[%clk 0:00:15.8]} 40. Qf3
{[%clk 0:00:01.9]} 40... Rb7 {[%clk 0:00:14.8]} 41. Qc3 {[%clk 0:00:01.7]} 41...
Rc7 {[%clk 0:00:14.1]} 42. Qf3 {[%clk 0:00:02.1]} 42... Qe6 {[%clk 0:00:14]} 43.
Rf6 {[%clk 0:00:02.4]} 43... Qc4 {[%clk 0:00:12.5]} 44. Qf4 {[%clk 0:00:02.4]}
44... Qd5+ {[%clk 0:00:12.6]} 45. Qf3 {[%clk 0:00:02.5]} 45... Qe5 {[%clk
0:00:12.9]} 46. Rf4 {[%clk 0:00:03.1]} 46... Rc3 {[%clk 0:00:12.4]} 47. Rxf7+
{[%clk 0:00:03.1]} 47... Kh6 {[%clk 0:00:12]} 48. Qf4+ {[%clk 0:00:03.7]} 48...
Qxf4 {[%clk 0:00:10.5]} 49. Rxf4 {[%clk 0:00:04.6]} 49... Kg5 {[%clk 0:00:11.1]}
50. Rd4 {[%clk 0:00:04.5]} 50... Rc5 {[%clk 0:00:11.7]} 51. Rd6 {[%clk
0:00:04.5]} 51... Kf5 {[%clk 0:00:11.8]} 52. h4 {[%clk 0:00:04.4]} 52... Rc2
{[%clk 0:00:12.3]} 53. Rd5+ {[%clk 0:00:04.4]} 53... Ke4 {[%clk 0:00:11]} 54.
Rg5 {[%clk 0:00:04.2]} 54... Rc6 {[%clk 0:00:11.6]} 55. f3+ {[%clk 0:00:04.2]}
55... Ke3 {[%clk 0:00:12.2]} 56. g4 {[%clk 0:00:04]} 56... hxg4 {[%clk
0:00:10.1]} 57. fxg4 {[%clk 0:00:04.9]} 57... Kf4 {[%clk 0:00:11]} 58. Ra5
{[%clk 0:00:01]} 58... Rc2+ {[%clk 0:00:11.9]} 0-1

[Event "Early-Titled-Tuesday-Blitz-June-18-2024"]
[Site "Chess.com"]
[Date "2024.06.18"]
[Round "6"]
[White "Andrei_Skvortsov"]
[Black "UF_10"]
[Result "0-1"]
[WhiteElo "2771"]
[BlackElo "2560"]
[TimeControl "180+1"]
[EndTime "9:10:07 PDT"]
[Termination "UF_10 won by resignation"]

1. e4 {[%clk 0:03:00.9]} 1... e6 {[%clk 0:02:59.2]} 2. d4 {[%clk 0:02:57.6]}
2... d5 {[%clk 0:02:58.4]} 3. exd5 {[%clk 0:02:58.5]} 3... exd5 {[%clk
0:02:57.6]} 4. Nf3 {[%clk 0:02:59.4]} 4... Bd6 {[%clk 0:02:56.5]} 5. c4 {[%clk
0:02:58]} 5... Nf6 {[%clk 0:02:44.5]} 6. Qe2+ {[%clk 0:02:56.8]} 6... Be7 {[%clk
0:02:43.2]} 7. c5 {[%clk 0:02:54]} 7... O-O {[%clk 0:02:43.3]} 8. h3 {[%clk
0:02:53]} 8... Re8 {[%clk 0:02:41.9]} 9. Be3 {[%clk 0:02:53.5]} 9... Nc6 {[%clk
0:02:37.9]} 10. Nc3 {[%clk 0:02:53.5]} 10... b6 {[%clk 0:02:31.5]} 11. cxb6
{[%clk 0:02:53.5]} 11... axb6 {[%clk 0:02:30.8]} 12. Qd2 {[%clk 0:02:53.8]}
12... Bb4 {[%clk 0:02:27.5]} 13. Bd3 {[%clk 0:02:51.2]} 13... Ne4 {[%clk
0:02:13.8]} 14. Qc2 {[%clk 0:02:49]} 14... Ng3 {[%clk 0:02:04.5]} 15. fxg3
{[%clk 0:02:46]} 15... Rxe3+ {[%clk 0:02:04.2]} 16. Kf2 {[%clk 0:02:46.6]} 16...
Re8 {[%clk 0:01:37.3]} 17. Bxh7+ {[%clk 0:02:43.9]} 17... Kh8 {[%clk 0:01:37.7]}
18. Rhe1 {[%clk 0:02:39.6]} 18... Be6 {[%clk 0:01:29.9]} 19. Bf5 {[%clk
0:02:34.5]} 19... Nxd4 {[%clk 0:01:18.2]} 20. Nxd4 {[%clk 0:02:33]} 20... Qf6
{[%clk 0:01:18.4]} 21. Qd3 {[%clk 0:01:00.2]} 21... Bc5 {[%clk 0:01:12.8]} 22.
g4 {[%clk 0:00:25.8]} 22... Bxd4+ {[%clk 0:01:07.5]} 23. Kg3 {[%clk 0:00:24.8]}
23... Be5+ {[%clk 0:01:04.7]} 24. Kf2 {[%clk 0:00:15.2]} 24... g6 {[%clk
0:01:04.5]} 25. Rxe5 {[%clk 0:00:15.7]} 25... Qxe5 {[%clk 0:01:02.9]} 26. Bxe6
{[%clk 0:00:15.8]} 26... Rxe6 {[%clk 0:01:02]} 27. Kg1 {[%clk 0:00:16.1]} 27...
Qe3+ {[%clk 0:01:01.6]} 28. Qxe3 {[%clk 0:00:16.2]} 28... Rxe3 {[%clk
0:01:02.5]} 29. Nxd5 {[%clk 0:00:17.1]} 29... Re2 {[%clk 0:00:59.6]} 30. Nxc7
{[%clk 0:00:14.4]} 30... Rc8 {[%clk 0:00:57.3]} 31. Nd5 {[%clk 0:00:13.8]} 31...
Rxb2 {[%clk 0:00:52.8]} 32. a4 {[%clk 0:00:08.6]} 32... Rcc2 {[%clk 0:00:52.2]}
33. Ne3 {[%clk 0:00:09.1]} 33... Re2 {[%clk 0:00:51.1]} 34. Nf1 {[%clk
0:00:08.5]} 34... Rxg2+ {[%clk 0:00:51.1]} 35. Kh1 {[%clk 0:00:09.2]} 35... Rgf2
{[%clk 0:00:48.4]} 36. Rd1 {[%clk 0:00:08.5]} 36... Rb3 {[%clk 0:00:46.6]} 37.
Kg1 {[%clk 0:00:08.6]} 37... Ra2 {[%clk 0:00:45.2]} 38. h4 {[%clk 0:00:03.4]}
38... Rh3 {[%clk 0:00:43.3]} 39. h5 {[%clk 0:00:03.2]} 39... gxh5 {[%clk
0:00:42.9]} 40. gxh5 {[%clk 0:00:04.1]} 40... Rxh5 {[%clk 0:00:43.5]} 41. Rd4
{[%clk 0:00:04.7]} 41... Rg5+ {[%clk 0:00:42.7]} 42. Kh1 {[%clk 0:00:04.8]}
42... Kg7 {[%clk 0:00:43.2]} 43. Rb4 {[%clk 0:00:04.3]} 43... Ra1 {[%clk
0:00:43.3]} 44. Rf4 {[%clk 0:00:03.8]} 44... Kg6 {[%clk 0:00:43.4]} 45. Kh2
{[%clk 0:00:04]} 45... Rf5 {[%clk 0:00:36.2]} 46. Rg4+ {[%clk 0:00:04.3]} 46...
Kh5 {[%clk 0:00:34.4]} 47. Ne3 {[%clk 0:00:05]} 47... Rf2+ {[%clk 0:00:32]} 48.
Kg3 {[%clk 0:00:04.2]} 48... Re2 {[%clk 0:00:30]} 49. Re4 {[%clk 0:00:03.7]}
49... Rae1 {[%clk 0:00:25.5]} 50. Re5+ {[%clk 0:00:02.7]} 50... Kg6 {[%clk
0:00:25.3]} 51. Kf3 {[%clk 0:00:03.4]} 51... Rxe3+ {[%clk 0:00:18.1]} 52. Rxe3
{[%clk 0:00:04.3]} 52... Rxe3+ {[%clk 0:00:19]} 53. Kxe3 {[%clk 0:00:05.2]}
53... Kg5 {[%clk 0:00:18.4]} 54. Kd4 {[%clk 0:00:05.8]} 54... f5 {[%clk
0:00:17.5]} 55. Ke3 {[%clk 0:00:06.1]} 55... Kg4 {[%clk 0:00:16.1]} 56. Kd4
{[%clk 0:00:06.6]} 56... f4 {[%clk 0:00:16.3]} 57. Kd5 {[%clk 0:00:07.5]} 57...
f3 {[%clk 0:00:16.8]} 58. a5 {[%clk 0:00:08]} 58... bxa5 {[%clk 0:00:15.3]} 0-1

[Event "Early-Titled-Tuesday-Blitz-June-18-2024"]
[Site "Chess.com"]
[Date "2024.06.18"]
[Round "6"]
[White "cthulhuuu"]
[Black "Ordekalog"]
[Result "1/2-1/2"]
[WhiteElo "2376"]
[BlackElo "2626"]
[TimeControl "180+1"]
[EndTime "9:10:10 PDT"]
[Termination "Game drawn by stalemate"]

1. e4 {[%clk 0:03:00.1]} 1... c5 {[%clk 0:02:58.9]} 2. Nf3 {[%clk 0:03:00.5]}
2... Nc6 {[%clk 0:02:56.9]} 3. d3 {[%clk 0:03:00.8]} 3... e6 {[%clk 0:02:55.3]}
4. g3 {[%clk 0:03:00.2]} 4... d5 {[%clk 0:02:53.8]} 5. Nbd2 {[%clk 0:03:00.7]}
5... g5 {[%clk 0:02:50.2]} 6. exd5 {[%clk 0:02:53.3]} 6... exd5 {[%clk
0:02:48.7]} 7. Qe2+ {[%clk 0:02:53.4]} 7... Be6 {[%clk 0:02:48.1]} 8. Bh3 {[%clk
0:02:45.1]} 8... Qf6 {[%clk 0:02:32.8]} 9. Bxe6 {[%clk 0:02:39.9]} 9... fxe6
{[%clk 0:02:32.2]} 10. h4 {[%clk 0:02:31.2]} 10... g4 {[%clk 0:02:29.1]} 11. Ng5
{[%clk 0:02:31.4]} 11... Nd4 {[%clk 0:02:29.7]} 12. Qd1 {[%clk 0:02:20.3]} 12...
h6 {[%clk 0:02:24.6]} 13. c3 {[%clk 0:02:16.8]} 13... Nc6 {[%clk 0:02:18.9]} 14.
Nde4 {[%clk 0:02:11.7]} 14... dxe4 {[%clk 0:02:15.9]} 15. Nxe4 {[%clk
0:02:11.9]} 15... Qf3 {[%clk 0:02:08.6]} 16. Qxf3 {[%clk 0:01:43.5]} 16... gxf3
{[%clk 0:02:09.5]} 17. Be3 {[%clk 0:01:34]} 17... O-O-O {[%clk 0:02:10.4]} 18.
O-O-O {[%clk 0:01:34.3]} 18... b6 {[%clk 0:01:50.7]} 19. g4 {[%clk 0:01:34.2]}
19... Nge7 {[%clk 0:01:48.2]} 20. Rh3 {[%clk 0:01:33.5]} 20... Ne5 {[%clk
0:01:44.3]} 21. d4 {[%clk 0:01:31.5]} 21... Nxg4 {[%clk 0:01:43.4]} 22. Rxf3
{[%clk 0:01:31.9]} 22... Nf5 {[%clk 0:01:37.6]} 23. Bf4 {[%clk 0:01:07.8]} 23...
cxd4 {[%clk 0:01:34.2]} 24. cxd4 {[%clk 0:00:59.9]} 24... Kb7 {[%clk 0:01:31.3]}
25. Rfd3 {[%clk 0:00:47.4]} 25... Rh7 {[%clk 0:01:14]} 26. d5 {[%clk 0:00:42.9]}
26... exd5 {[%clk 0:01:12.5]} 27. Rxd5 {[%clk 0:00:43.8]} 27... Rxd5 {[%clk
0:01:06.7]} 28. Rxd5 {[%clk 0:00:44.7]} 28... Rf7 {[%clk 0:01:03.5]} 29. f3
{[%clk 0:00:38.4]} 29... Nge3 {[%clk 0:01:02.9]} 30. Rd8 {[%clk 0:00:15.9]}
30... Ng2 {[%clk 0:00:45.7]} 31. Rb8+ {[%clk 0:00:15.9]} 31... Kc6 {[%clk
0:00:43.5]} 32. Rc8+ {[%clk 0:00:15.9]} 32... Kb7 {[%clk 0:00:41.6]} 33. Rb8+
{[%clk 0:00:16.1]} 33... Ka6 {[%clk 0:00:41.5]} 34. Bd2 {[%clk 0:00:12.7]} 34...
Ngxh4 {[%clk 0:00:39]} 35. a4 {[%clk 0:00:12.8]} 35... Nxf3 {[%clk 0:00:36]} 36.
Bc3 {[%clk 0:00:10.9]} 36... Nd6 {[%clk 0:00:26.3]} 37. b4 {[%clk 0:00:07.6]}
37... Rc7 {[%clk 0:00:13.8]} 38. b5+ {[%clk 0:00:06.4]} 38... Nxb5 {[%clk
0:00:13.9]} 39. axb5+ {[%clk 0:00:06.8]} 39... Kxb5 {[%clk 0:00:14.6]} 40. Rxf8
{[%clk 0:00:06.9]} 40... Nd4 {[%clk 0:00:12.8]} 41. Kd2 {[%clk 0:00:05.6]} 41...
Nb3+ {[%clk 0:00:11.7]} 42. Kd3 {[%clk 0:00:05.8]} 42... Rd7+ {[%clk 0:00:11]}
43. Kc2 {[%clk 0:00:05.9]} 43... Nc5 {[%clk 0:00:10.3]} 44. Rf5 {[%clk
0:00:05.4]} 44... Rc7 {[%clk 0:00:08]} 45. Rh5 {[%clk 0:00:04.9]} 45... Rc6
{[%clk 0:00:07.3]} 46. Kb2 {[%clk 0:00:02.9]} 46... Kc4 {[%clk 0:00:06.1]} 47.
Nxc5 {[%clk 0:00:02.8]} 47... Rxc5 {[%clk 0:00:06]} 48. Rxh6 {[%clk 0:00:02.2]}
48... Kb5 {[%clk 0:00:05.9]} 49. Rh4 {[%clk 0:00:02.4]} 49... a5 {[%clk
0:00:05.7]} 50. Re4 {[%clk 0:00:02.5]} 50... Rf5 {[%clk 0:00:06.1]} 51. Re5+
{[%clk 0:00:02.9]} 51... Rxe5 {[%clk 0:00:04.7]} 52. Bxe5 {[%clk 0:00:03.8]}
52... Kc4 {[%clk 0:00:05.6]} 53. Bc7 {[%clk 0:00:04.1]} 53... Kc5 {[%clk
0:00:05.1]} 54. Bxb6+ {[%clk 0:00:04.4]} 54... Kxb6 {[%clk 0:00:04.9]} 55. Ka2
{[%clk 0:00:05.3]} 55... Kb5 {[%clk 0:00:05.2]} 56. Ka1 {[%clk 0:00:06.2]} 56...
Kb4 {[%clk 0:00:06.1]} 57. Ka2 {[%clk 0:00:07.1]} 57... a4 {[%clk 0:00:06.5]}
58. Ka1 {[%clk 0:00:08]} 58... a3 {[%clk 0:00:07.4]} 59. Kb1 {[%clk 0:00:08.9]}
59... Kb3 {[%clk 0:00:07.8]} 60. Ka1 {[%clk 0:00:09.8]} 60... a2 {[%clk
0:00:08.7]} 1/2-1/2